[Event "*** MasterClass Titled Tuesday Blitz"]
[Site "Chess.com"]
[Date "2017.07.04"]
[Round "2"]
[White "Iball95"]
[Black "Aguiar94"]
[Result "0-1"]
[WhiteElo "2534"]
[BlackElo "2422"]
[TimeControl "180+2"]
[EndTime "13:21:21 PDT"]
[Termination "Aguiar94 won by checkmate"]

1. e4 {[%clk 0:03:01.9]} 1... c5 {[%clk 0:03:00.1]} 2. Nf3 {[%clk 0:03:02]} 2...
e6 {[%clk 0:03:01.3]} 3. d4 {[%clk 0:03:02.7]} 3... cxd4 {[%clk 0:03:03.2]} 4.
Nxd4 {[%clk 0:03:04.6]} 4... Nc6 {[%clk 0:03:04.2]} 5. Nc3 {[%clk 0:03:05.3]}
5... Qc7 {[%clk 0:03:04.7]} 6. Be3 {[%clk 0:03:06.1]} 6... a6 {[%clk 0:03:05.8]}
7. Qf3 {[%clk 0:03:06.8]} 7... Nf6 {[%clk 0:03:06.7]} 8. O-O-O {[%clk
0:03:06.9]} 8... Nxd4 {[%clk 0:03:07.3]} 9. Bxd4 {[%clk 0:03:06.4]} 9... e5
{[%clk 0:03:08.4]} 10. Qg3 {[%clk 0:03:06.9]} 10... d6 {[%clk 0:03:09.6]} 11.
Be3 {[%clk 0:03:06]} 11... h6 {[%clk 0:03:10.6]} 12. Be2 {[%clk 0:02:53.4]}
12... Be6 {[%clk 0:03:09.6]} 13. f4 {[%clk 0:02:53.6]} 13... Rc8 {[%clk
0:03:09.6]} 14. Kb1 {[%clk 0:02:47.1]} 14... Nxe4 {[%clk 0:03:07.1]} 15. Nxe4
{[%clk 0:02:41.9]} 15... Qxc2+ {[%clk 0:03:06.6]} 16. Ka1 {[%clk 0:02:42.4]}
16... Qxe4 {[%clk 0:03:05.6]} 17. fxe5 {[%clk 0:02:34.5]} 17... Qa4 {[%clk
0:03:04.7]} 18. b3 {[%clk 0:02:29.3]} 18... Bxb3 {[%clk 0:02:52.7]} 19. Rd2
{[%clk 0:02:29.8]} 19... Qa3 {[%clk 0:01:55.1]} 20. Rb2 {[%clk 0:01:57.4]} 20...
Be6 {[%clk 0:01:46]} 21. exd6 {[%clk 0:01:39.4]} 21... Bxd6 {[%clk 0:01:41.1]}
22. Qxg7 {[%clk 0:01:37]} 22... Qxe3 {[%clk 0:01:30.6]} 23. Qxh8+ {[%clk
0:01:36.6]} 23... Ke7 {[%clk 0:01:31.5]} 24. Rxb7+ {[%clk 0:01:31.2]} 24... Rc7
{[%clk 0:01:32.4]} 25. Qb2 {[%clk 0:00:55.2]} 25... Rxb7 {[%clk 0:01:30.9]} 26.
Qxb7+ {[%clk 0:00:56.6]} 26... Kf8 {[%clk 0:01:31.9]} 27. Qf3 {[%clk 0:00:23.7]}
27... Qd2 {[%clk 0:01:23.9]} 28. Qe4 {[%clk 0:00:19.4]} 28... Qxa2# {[%clk
0:01:22.4]} 0-1

[Event "*** MasterClass Titled Tuesday Blitz"]
[Site "Chess.com"]
[Date "2017.07.04"]
[Round "2"]
[White "GMKrikor"]
[Black "SergeiAza"]
[Result "0-1"]
[WhiteElo "2464"]
[BlackElo "2708"]
[TimeControl "180+2"]
[EndTime "13:21:31 PDT"]
[Termination "SergeiAza won by resignation"]

1. e4 {[%clk 0:03:01.9]} 1... c5 {[%clk 0:03:00.6]} 2. Nf3 {[%clk 0:03:03.3]}
2... Nc6 {[%clk 0:03:01.5]} 3. Bb5 {[%clk 0:03:03.4]} 3... e6 {[%clk 0:03:01.6]}
4. O-O {[%clk 0:03:03.9]} 4... Nge7 {[%clk 0:03:02.3]} 5. c3 {[%clk 0:03:03]}
5... a6 {[%clk 0:03:00]} 6. Ba4 {[%clk 0:03:04.4]} 6... b5 {[%clk 0:03:00]} 7.
Bc2 {[%clk 0:03:04.8]} 7... Bb7 {[%clk 0:02:59.8]} 8. Re1 {[%clk 0:02:52.5]}
8... Ng6 {[%clk 0:02:49.1]} 9. a4 {[%clk 0:02:51.2]} 9... b4 {[%clk 0:02:42.2]}
10. d4 {[%clk 0:02:52.3]} 10... bxc3 {[%clk 0:02:38.8]} 11. d5 {[%clk
0:02:50.1]} 11... Nb4 {[%clk 0:02:33.4]} 12. Nxc3 {[%clk 0:02:48]} 12... Qc7
{[%clk 0:02:28.8]} 13. a5 {[%clk 0:02:26.3]} 13... Bd6 {[%clk 0:02:12.1]} 14. h4
{[%clk 0:02:11.5]} 14... O-O {[%clk 0:02:03.5]} 15. h5 {[%clk 0:02:12.8]} 15...
Ne5 {[%clk 0:02:04.1]} 16. h6 {[%clk 0:02:14.2]} 16... Nxf3+ {[%clk 0:01:46.1]}
17. Qxf3 {[%clk 0:02:13.8]} 17... Nxc2 {[%clk 0:01:36.2]} 18. hxg7 {[%clk
0:01:11]} 18... Rfe8 {[%clk 0:01:33.7]} 19. Rd1 {[%clk 0:00:47.2]} 19... Nxa1
{[%clk 0:01:25.5]} 20. Bh6 {[%clk 0:00:43.2]} 20... Be5 {[%clk 0:01:21.7]} 21.
Rxa1 {[%clk 0:00:42.9]} 21... exd5 {[%clk 0:01:20.6]} 22. exd5 {[%clk
0:00:39.4]} 22... Qd6 {[%clk 0:01:19.1]} 23. Bd2 {[%clk 0:00:19.1]} 23... Bxc3
{[%clk 0:00:54.6]} 24. Bxc3 {[%clk 0:00:20.1]} 24... Qxd5 {[%clk 0:00:55.6]} 25.
Qg3 {[%clk 0:00:21.4]} 25... Re6 {[%clk 0:00:52.4]} 26. f3 {[%clk 0:00:21.8]}
26... Rg6 {[%clk 0:00:51.1]} 0-1

[Event "*** MasterClass Titled Tuesday Blitz"]
[Site "Chess.com"]
[Date "2017.07.04"]
[Round "2"]
[White "merillium"]
[Black "hassler2"]
[Result "0-1"]
[WhiteElo "2336"]
[BlackElo "2284"]
[TimeControl "180+2"]
[EndTime "13:21:38 PDT"]
[Termination "hassler2 won by resignation"]

1. d4 {[%clk 0:02:59.9]} 1... Nf6 {[%clk 0:03:00.7]} 2. Nf3 {[%clk 0:03:00.7]}
2... d5 {[%clk 0:03:01.6]} 3. c4 {[%clk 0:03:01.1]} 3... e6 {[%clk 0:03:02.7]}
4. Nc3 {[%clk 0:03:01.2]} 4... Be7 {[%clk 0:03:00.2]} 5. Bf4 {[%clk 0:03:02.2]}
5... O-O {[%clk 0:03:00.8]} 6. e3 {[%clk 0:03:03.5]} 6... b6 {[%clk 0:03:01.6]}
7. cxd5 {[%clk 0:03:03.5]} 7... exd5 {[%clk 0:03:01.8]} 8. Be2 {[%clk
0:03:04.1]} 8... Bb7 {[%clk 0:03:02.9]} 9. O-O {[%clk 0:03:05.4]} 9... a6 {[%clk
0:03:04.1]} 10. Rc1 {[%clk 0:03:03.5]} 10... Nc6 {[%clk 0:03:04.7]} 11. Ne5
{[%clk 0:03:01.7]} 11... Nxe5 {[%clk 0:03:03.5]} 12. dxe5 {[%clk 0:03:02.2]}
12... Ne8 {[%clk 0:02:51.3]} 13. Bf3 {[%clk 0:03:02.1]} 13... c6 {[%clk
0:02:50.3]} 14. Qe2 {[%clk 0:03:02]} 14... Nc7 {[%clk 0:02:50.9]} 15. Rfd1
{[%clk 0:03:02.2]} 15... Ne6 {[%clk 0:02:50.9]} 16. Bg3 {[%clk 0:03:03]} 16...
b5 {[%clk 0:02:42.1]} 17. e4 {[%clk 0:03:02]} 17... d4 {[%clk 0:02:42.2]} 18.
Nb1 {[%clk 0:02:44]} 18... Qb6 {[%clk 0:02:42.3]} 19. Nd2 {[%clk 0:02:33.6]}
19... c5 {[%clk 0:02:43.1]} 20. Kh1 {[%clk 0:02:17.5]} 20... c4 {[%clk
0:02:42.9]} 21. Bg4 {[%clk 0:02:17.3]} 21... Rad8 {[%clk 0:02:40.8]} 22. f4
{[%clk 0:02:12.8]} 22... d3 {[%clk 0:02:41]} 23. Qf1 {[%clk 0:02:13.1]} 23...
Nc5 {[%clk 0:02:36.1]} 24. Bf2 {[%clk 0:02:12.8]} 24... Qa5 {[%clk 0:02:31.5]}
25. Bxc5 {[%clk 0:02:05.5]} 25... Bxc5 {[%clk 0:02:33.4]} 26. a3 {[%clk
0:02:02.2]} 26... Be3 {[%clk 0:02:32.9]} 27. Qe1 {[%clk 0:01:48.8]} 27... Bxf4
{[%clk 0:02:33.2]} 28. e6 {[%clk 0:01:46.4]} 28... fxe6 {[%clk 0:02:34]} 29.
Bxe6+ {[%clk 0:01:46.6]} 29... Kh8 {[%clk 0:02:35.6]} 30. Bf5 {[%clk 0:01:41.9]}
30... g6 {[%clk 0:02:27.9]} 31. Bg4 {[%clk 0:01:40.8]} 31... Rde8 {[%clk
0:02:19.4]} 32. Bf3 {[%clk 0:01:34.5]} 32... Be5 {[%clk 0:01:52.4]} 33. Qh4
{[%clk 0:00:53.4]} 33... Bxb2 {[%clk 0:01:33.2]} 34. Rb1 {[%clk 0:00:53.7]}
34... Bf6 {[%clk 0:01:27.6]} 35. Qg4 {[%clk 0:00:50.7]} 35... Bc8 {[%clk
0:01:23.6]} 36. Qg3 {[%clk 0:00:46.7]} 36... Qxa3 {[%clk 0:01:21.8]} 37. Nf1
{[%clk 0:00:40.2]} 37... c3 {[%clk 0:01:16.8]} 38. Rxd3 {[%clk 0:00:40.7]} 38...
c2 {[%clk 0:01:17]} 0-1

[Event "*** MasterClass Titled Tuesday Blitz"]
[Site "Chess.com"]
[Date "2017.07.04"]
[Round "2"]
[White "Popopuiyt"]
[Black "peteseeger"]
[Result "1-0"]
[WhiteElo "2243"]
[BlackElo "2138"]
[TimeControl "180+2"]
[EndTime "13:21:41 PDT"]
[Termination "Popopuiyt won by resignation"]

1. d4 {[%clk 0:03:01.9]} 1... g6 {[%clk 0:03:00.1]} 2. c4 {[%clk 0:03:01.9]}
2... Bg7 {[%clk 0:03:01]} 3. e4 {[%clk 0:03:03.2]} 3... d6 {[%clk 0:03:01.9]} 4.
Nc3 {[%clk 0:03:04.3]} 4... e5 {[%clk 0:03:02.6]} 5. d5 {[%clk 0:03:03.6]} 5...
a5 {[%clk 0:03:02.5]} 6. Bd3 {[%clk 0:03:02.9]} 6... Na6 {[%clk 0:03:02.5]} 7.
Be3 {[%clk 0:02:56.3]} 7... Bd7 {[%clk 0:03:02.7]} 8. f3 {[%clk 0:02:53]} 8...
f5 {[%clk 0:03:01.8]} 9. Nge2 {[%clk 0:02:51.1]} 9... Bh6 {[%clk 0:02:55.7]} 10.
Qd2 {[%clk 0:02:45.5]} 10... Bxe3 {[%clk 0:02:53.8]} 11. Qxe3 {[%clk 0:02:47.4]}
11... f4 {[%clk 0:02:54.2]} 12. Qf2 {[%clk 0:02:36.9]} 12... Nc5 {[%clk
0:02:53.9]} 13. Bc2 {[%clk 0:02:36.2]} 13... Nf6 {[%clk 0:02:53.3]} 14. Nc1
{[%clk 0:02:26.7]} 14... c6 {[%clk 0:02:48.6]} 15. Nd3 {[%clk 0:02:26.4]} 15...
Nxd3+ {[%clk 0:02:46.9]} 16. Bxd3 {[%clk 0:02:28.3]} 16... cxd5 {[%clk
0:02:47.1]} 17. cxd5 {[%clk 0:02:27.7]} 17... O-O {[%clk 0:02:45.6]} 18. O-O
{[%clk 0:02:26.4]} 18... g5 {[%clk 0:02:39]} 19. Bb5 {[%clk 0:02:08]} 19... Bc8
{[%clk 0:02:37.1]} 20. Be2 {[%clk 0:02:08.8]} 20... h5 {[%clk 0:02:21.8]} 21.
Rac1 {[%clk 0:02:05.3]} 21... g4 {[%clk 0:02:20.2]} 22. Qh4 {[%clk 0:02:04.5]}
22... Rf7 {[%clk 0:01:48.2]} 23. Kh1 {[%clk 0:02:04.7]} 23... g3 {[%clk
0:01:39.1]} 24. hxg3 {[%clk 0:02:03.9]} 24... fxg3 {[%clk 0:01:37.1]} 25. Qxg3+
{[%clk 0:01:52.7]} 25... Rg7 {[%clk 0:01:37.5]} 26. Qh4 {[%clk 0:01:53.5]} 26...
Bd7 {[%clk 0:01:28.4]} 27. Bb5 {[%clk 0:01:52.6]} 27... Kf7 {[%clk 0:01:11.1]}
28. a4 {[%clk 0:01:50.8]} 28... Qb6 {[%clk 0:00:36.5]} 29. Bxd7 {[%clk 0:01:43]}
29... Nxd7 {[%clk 0:00:36.5]} 30. Nb5 {[%clk 0:01:44.3]} 30... Rag8 {[%clk
0:00:33.8]} 31. Rc7 {[%clk 0:01:36.3]} 31... Kg6 {[%clk 0:00:21.1]} 32. Qh3
{[%clk 0:01:25.2]} 32... Nf6 {[%clk 0:00:09.3]} 33. Qf5+ {[%clk 0:01:25.9]} 1-0

[Event "*** MasterClass Titled Tuesday Blitz"]
[Site "Chess.com"]
[Date "2017.07.04"]
[Round "2"]
[White "CookiesAndIceCream"]
[Black "FLchessplayer"]
[Result "1-0"]
[WhiteElo "2218"]
[BlackElo "2050"]
[TimeControl "180+2"]
[EndTime "13:21:41 PDT"]
[Termination "CookiesAndIceCream won by resignation"]

1. e4 {[%clk 0:03:01.9]} 1... e5 {[%clk 0:03:00.1]} 2. Nf3 {[%clk 0:03:02.7]}
2... Nc6 {[%clk 0:03:01.1]} 3. Nc3 {[%clk 0:03:03.9]} 3... a6 {[%clk 0:03:02]}
4. Bc4 {[%clk 0:03:02.2]} 4... d6 {[%clk 0:03:02.1]} 5. d3 {[%clk 0:02:51.2]}
5... Be7 {[%clk 0:03:02]} 6. a3 {[%clk 0:02:50]} 6... Nf6 {[%clk 0:03:02.1]} 7.
O-O {[%clk 0:02:51.3]} 7... O-O {[%clk 0:03:02.1]} 8. Ne2 {[%clk 0:02:52.2]}
8... d5 {[%clk 0:03:01.5]} 9. exd5 {[%clk 0:02:52.2]} 9... Nxd5 {[%clk
0:03:02.4]} 10. Ng3 {[%clk 0:02:44.3]} 10... f6 {[%clk 0:03:01.3]} 11. h3 {[%clk
0:02:45]} 11... Kh8 {[%clk 0:03:01.7]} 12. Re1 {[%clk 0:02:45.5]} 12... Nb6
{[%clk 0:03:02]} 13. Ba2 {[%clk 0:02:43.7]} 13... Bd6 {[%clk 0:03:02.3]} 14. Ne4
{[%clk 0:02:40.9]} 14... Be7 {[%clk 0:03:02.2]} 15. Ng3 {[%clk 0:02:38.3]} 15...
Bd6 {[%clk 0:03:01.1]} 16. Be3 {[%clk 0:02:37.5]} 16... Nd7 {[%clk 0:02:57.9]}
17. Nf5 {[%clk 0:02:31]} 17... Nc5 {[%clk 0:02:52.7]} 18. Nxd6 {[%clk
0:02:28.2]} 18... Qxd6 {[%clk 0:02:53.4]} 19. d4 {[%clk 0:02:23.7]} 19... exd4
{[%clk 0:02:52.9]} 20. Nxd4 {[%clk 0:02:24.1]} 20... Nxd4 {[%clk 0:02:50]} 21.
Qxd4 {[%clk 0:02:24.7]} 21... Rd8 {[%clk 0:02:38.2]} 22. Qxd6 {[%clk 0:02:22.7]}
22... cxd6 {[%clk 0:02:39.1]} 23. Rad1 {[%clk 0:02:23.6]} 23... Bf5 {[%clk
0:02:39.7]} 24. Re2 {[%clk 0:02:16.5]} 24... Rac8 {[%clk 0:02:35.2]} 25. c3
{[%clk 0:02:14.5]} 25... b5 {[%clk 0:02:23.3]} 26. Red2 {[%clk 0:02:14.3]} 26...
Na4 {[%clk 0:02:23.3]} 27. g4 {[%clk 0:02:03.7]} 27... Bg6 {[%clk 0:02:22.5]}
28. f4 {[%clk 0:02:04.2]} 28... h6 {[%clk 0:02:21.3]} 29. f5 {[%clk 0:02:04.2]}
29... Bh7 {[%clk 0:02:21.8]} 30. Kf2 {[%clk 0:02:03.2]} 30... Bg8 {[%clk
0:02:22.4]} 31. Bb1 {[%clk 0:02:01.2]} 31... Bb3 {[%clk 0:02:21.9]} 32. Re1
{[%clk 0:01:57.3]} 32... Kg8 {[%clk 0:02:21.4]} 33. Bf4 {[%clk 0:01:54.6]} 33...
d5 {[%clk 0:02:16.6]} 34. Re7 {[%clk 0:01:50.3]} 34... Re8 {[%clk 0:02:15.1]}
35. Ra7 {[%clk 0:01:49.8]} 35... Ra8 {[%clk 0:02:14.5]} 36. Rc7 {[%clk
0:01:45.8]} 36... Rac8 {[%clk 0:02:11.8]} 37. Ra7 {[%clk 0:01:27.7]} 37... Ra8
{[%clk 0:02:11.9]} 38. Rxa8 {[%clk 0:01:27]} 38... Rxa8 {[%clk 0:02:11.3]} 39.
Bc2 {[%clk 0:01:24]} 39... Bxc2 {[%clk 0:02:10.8]} 40. Rxc2 {[%clk 0:01:25.9]}
40... Rc8 {[%clk 0:02:11]} 41. Rd2 {[%clk 0:01:26.5]} 41... Kf7 {[%clk
0:02:07.2]} 42. Ke3 {[%clk 0:01:26.6]} 42... Re8+ {[%clk 0:02:01.2]} 43. Kd3
{[%clk 0:01:23.8]} 43... Nb6 {[%clk 0:01:58]} 44. b3 {[%clk 0:01:22.7]} 44...
Re4 {[%clk 0:01:52.4]} 45. Bc7 {[%clk 0:01:20.9]} 45... Nd7 {[%clk 0:01:53]} 46.
Kc2 {[%clk 0:01:20.7]} 46... Re3 {[%clk 0:01:38.4]} 47. Rxd5 {[%clk 0:01:19.6]}
47... Ke8 {[%clk 0:01:39.2]} 48. Rd6 {[%clk 0:01:15]} 48... Nc5 {[%clk
0:01:25.5]} 49. Bb6 {[%clk 0:01:13.5]} 49... Nd7 {[%clk 0:01:24.3]} 50. Bxe3
{[%clk 0:01:13.5]} 1-0

[Event "*** MasterClass Titled Tuesday Blitz"]
[Site "Chess.com"]
[Date "2017.07.04"]
[Round "2"]
[White "popov_m"]
[Black "TregubovP"]
[Result "0-1"]
[WhiteElo "2378"]
[BlackElo "2393"]
[TimeControl "180+2"]
[EndTime "13:21:47 PDT"]
[Termination "TregubovP won by resignation"]

1. d4 {[%clk 0:03:01.9]} 1... Nf6 {[%clk 0:02:57.9]} 2. Bf4 {[%clk 0:03:02.7]}
2... d5 {[%clk 0:02:57.6]} 3. e3 {[%clk 0:03:03.4]} 3... c5 {[%clk 0:02:59.2]}
4. Nd2 {[%clk 0:03:03.2]} 4... Nc6 {[%clk 0:02:57.2]} 5. c3 {[%clk 0:03:04.1]}
5... Bf5 {[%clk 0:02:55.6]} 6. Ngf3 {[%clk 0:03:03.7]} 6... e6 {[%clk
0:02:55.4]} 7. Be2 {[%clk 0:02:56.5]} 7... h6 {[%clk 0:02:55.3]} 8. Ne5 {[%clk
0:02:52.5]} 8... Nxe5 {[%clk 0:02:49.7]} 9. dxe5 {[%clk 0:02:43.7]} 9... Nd7
{[%clk 0:02:50.4]} 10. g4 {[%clk 0:02:42.2]} 10... Bh7 {[%clk 0:02:49.1]} 11. h4
{[%clk 0:02:43.5]} 11... Be7 {[%clk 0:02:45.6]} 12. h5 {[%clk 0:02:44.3]} 12...
f6 {[%clk 0:02:32.2]} 13. exf6 {[%clk 0:02:29.1]} 13... Bxf6 {[%clk 0:02:32.7]}
14. Qb3 {[%clk 0:02:17.6]} 14... Qb6 {[%clk 0:02:27.6]} 15. Bb5 {[%clk
0:02:18.2]} 15... O-O-O {[%clk 0:02:10.5]} 16. a4 {[%clk 0:02:08.7]} 16... c4
{[%clk 0:01:56.8]} 17. Qb4 {[%clk 0:02:04.1]} 17... e5 {[%clk 0:01:42.3]} 18. a5
{[%clk 0:01:21.8]} 18... Qe6 {[%clk 0:01:42.4]} 19. Bg3 {[%clk 0:00:57.9]} 19...
a6 {[%clk 0:01:42.6]} 20. Bxd7+ {[%clk 0:00:35.7]} 20... Rxd7 {[%clk 0:01:42.3]}
21. f3 {[%clk 0:00:34.3]} 21... Bd3 {[%clk 0:01:36.5]} 22. Kf2 {[%clk
0:00:32.5]} 22... Be7 {[%clk 0:01:30.3]} 23. Qa4 {[%clk 0:00:32.3]} 23... Rf8
{[%clk 0:01:26.6]} 24. Kg2 {[%clk 0:00:25.8]} 24... e4 {[%clk 0:01:13.9]} 25.
fxe4 {[%clk 0:00:18.1]} 25... Qxg4 {[%clk 0:01:11.5]} 26. Rae1 {[%clk
0:00:09.7]} 26... Bd6 {[%clk 0:01:09.3]} 27. Rh3 {[%clk 0:00:10.7]} 27... Rdf7
{[%clk 0:01:09.2]} 28. Rg1 {[%clk 0:00:03.6]} 28... Rf2+ {[%clk 0:01:08.4]} 29.
Kh1 {[%clk 0:00:04.6]} 29... Qxh3+ {[%clk 0:01:08.8]} 0-1

[Event "*** MasterClass Titled Tuesday Blitz"]
[Site "Chess.com"]
[Date "2017.07.04"]
[Round "2"]
[White "Wolverine_master"]
[Black "playablecharacter"]
[Result "0-1"]
[WhiteElo "1984"]
[BlackElo "1992"]
[TimeControl "180+2"]
[EndTime "13:21:47 PDT"]
[Termination "playablecharacter won by checkmate"]

1. e4 {[%clk 0:03:01.9]} 1... c6 {[%clk 0:02:59.2]} 2. d4 {[%clk 0:03:01.8]}
2... d5 {[%clk 0:02:59.8]} 3. e5 {[%clk 0:03:02.5]} 3... c5 {[%clk 0:02:57.9]}
4. c3 {[%clk 0:03:02.4]} 4... Nc6 {[%clk 0:02:59.2]} 5. Nf3 {[%clk 0:02:58.2]}
5... Bg4 {[%clk 0:03:00.1]} 6. Bb5 {[%clk 0:02:56.6]} 6... e6 {[%clk 0:02:53.3]}
7. O-O {[%clk 0:02:53.9]} 7... Ne7 {[%clk 0:02:48.2]} 8. a3 {[%clk 0:02:54.1]}
8... Qb6 {[%clk 0:02:47.4]} 9. Bxc6+ {[%clk 0:02:51.4]} 9... Nxc6 {[%clk
0:02:48.2]} 10. dxc5 {[%clk 0:02:48.2]} 10... Bxc5 {[%clk 0:02:48.9]} 11. b4
{[%clk 0:02:48.6]} 11... Be7 {[%clk 0:02:49.8]} 12. Be3 {[%clk 0:02:48.6]} 12...
Qc7 {[%clk 0:02:50]} 13. Bd4 {[%clk 0:02:49.3]} 13... O-O {[%clk 0:02:43.4]} 14.
Nbd2 {[%clk 0:02:48.3]} 14... Rac8 {[%clk 0:02:35.2]} 15. Rc1 {[%clk 0:02:46.3]}
15... Bg5 {[%clk 0:02:24.5]} 16. Kh1 {[%clk 0:02:16.7]} 16... Bxf3 {[%clk
0:02:05.6]} 17. gxf3 {[%clk 0:02:16.1]} 17... Nxd4 {[%clk 0:02:02.9]} 18. cxd4
{[%clk 0:01:56.1]} 18... Qxc1 {[%clk 0:01:57.6]} 19. Qxc1 {[%clk 0:01:58]} 19...
Rxc1 {[%clk 0:01:56.5]} 20. Rxc1 {[%clk 0:01:59.9]} 20... Bxd2 {[%clk 0:01:57]}
21. Rc7 {[%clk 0:02:00.9]} 21... Rb8 {[%clk 0:01:52.8]} 22. b5 {[%clk
0:02:01.7]} 22... Ba5 {[%clk 0:01:49.3]} 23. Rc2 {[%clk 0:01:59.3]} 23... Bb6
{[%clk 0:01:49.6]} 24. Rd2 {[%clk 0:01:56.8]} 24... Rc8 {[%clk 0:01:49.4]} 25.
Rd3 {[%clk 0:01:58.2]} 25... Rc4 {[%clk 0:01:49.9]} 26. Kg2 {[%clk 0:01:56.7]}
26... Bxd4 {[%clk 0:01:48.9]} 27. f4 {[%clk 0:01:57.2]} 27... Bc5 {[%clk
0:01:46]} 28. Kf3 {[%clk 0:01:57.6]} 28... Rc2 {[%clk 0:01:44.3]} 29. Kg4 {[%clk
0:01:54.5]} 29... Rxf2 {[%clk 0:01:38]} 30. Rc3 {[%clk 0:01:54.4]} 30... b6
{[%clk 0:01:38.3]} 31. h4 {[%clk 0:01:52.9]} 31... d4 {[%clk 0:01:37.9]} 32. Rd3
{[%clk 0:01:52.6]} 32... Ra2 {[%clk 0:01:38.2]} 33. h5 {[%clk 0:01:51.2]} 33...
Rxa3 {[%clk 0:01:38.4]} 34. Rd1 {[%clk 0:01:52.1]} 34... d3 {[%clk 0:01:39.2]}
35. h6 {[%clk 0:01:51.9]} 35... gxh6 {[%clk 0:01:40.3]} 36. Kh5 {[%clk
0:01:52.3]} 36... Be3 {[%clk 0:01:36.9]} 37. f5 {[%clk 0:01:52.6]} 37... exf5
{[%clk 0:01:37.5]} 38. e6 {[%clk 0:01:44.3]} 38... fxe6 {[%clk 0:01:38.4]} 39.
Re1 {[%clk 0:01:33.6]} 39... d2 {[%clk 0:01:36.7]} 40. Rd1 {[%clk 0:01:31.7]}
40... f4 {[%clk 0:01:35.3]} 41. Rf1 {[%clk 0:01:28.8]} 41... Rd3 {[%clk
0:01:34.9]} 42. Rd1 {[%clk 0:01:29]} 42... Rc3 {[%clk 0:01:35.8]} 43. Rh1 {[%clk
0:01:22.3]} 43... Rc1 {[%clk 0:01:30.9]} 44. Rh4 {[%clk 0:01:01.6]} 44... d1=Q+
{[%clk 0:01:28.4]} 45. Kxh6 {[%clk 0:01:03.5]} 45... f3+ {[%clk 0:01:28.7]} 46.
Kh5 {[%clk 0:01:01.8]} 46... f2+ {[%clk 0:01:28.7]} 47. Rg4+ {[%clk 0:01:03]}
47... Qxg4+ {[%clk 0:01:30.1]} 48. Kxg4 {[%clk 0:01:03.2]} 48... f1=Q {[%clk
0:01:29.2]} 49. Kh5 {[%clk 0:01:04.3]} 49... Qf3+ {[%clk 0:01:29.8]} 50. Kh4
{[%clk 0:01:04.2]} 50... Rh1# {[%clk 0:01:30.7]} 0-1

[Event "*** MasterClass Titled Tuesday Blitz"]
[Site "Chess.com"]
[Date "2017.07.04"]
[Round "2"]
[White "mokerslag"]
[Black "Hikaru"]
[Result "0-1"]
[WhiteElo "2472"]
[BlackElo "2979"]
[TimeControl "180+2"]
[EndTime "13:21:48 PDT"]
[Termination "Hikaru won by resignation"]

1. e4 {[%clk 0:03:01.9]} 1... c5 {[%clk 0:03:00.6]} 2. Nf3 {[%clk 0:03:02.7]}
2... d6 {[%clk 0:03:00.1]} 3. d4 {[%clk 0:03:03.6]} 3... cxd4 {[%clk 0:03:00.2]}
4. Nxd4 {[%clk 0:03:05.5]} 4... Nf6 {[%clk 0:03:00.2]} 5. Nc3 {[%clk 0:03:07]}
5... a6 {[%clk 0:03:01.3]} 6. Bg5 {[%clk 0:03:08.4]} 6... e6 {[%clk 0:03:00.8]}
7. f4 {[%clk 0:03:09.7]} 7... Qb6 {[%clk 0:02:59.7]} 8. Qd3 {[%clk 0:03:07.3]}
8... h6 {[%clk 0:02:58.6]} 9. Bh4 {[%clk 0:03:05.4]} 9... Qxb2 {[%clk
0:02:58.6]} 10. Rb1 {[%clk 0:03:06.5]} 10... Qa3 {[%clk 0:02:59.7]} 11. f5
{[%clk 0:03:03.4]} 11... Be7 {[%clk 0:02:55.4]} 12. fxe6 {[%clk 0:02:51.5]}
12... fxe6 {[%clk 0:02:56.5]} 13. Qc4 {[%clk 0:02:28]} 13... Qc5 {[%clk
0:02:54.1]} 14. Bf2 {[%clk 0:01:52.9]} 14... b5 {[%clk 0:02:49.3]} 15. Qd3
{[%clk 0:01:43.4]} 15... Ng4 {[%clk 0:02:49.2]} 16. Bg1 {[%clk 0:01:38.6]} 16...
Ne5 {[%clk 0:02:49.1]} 17. Qg3 {[%clk 0:01:39.2]} 17... Bh4 {[%clk 0:02:53.7]}
18. Qxh4 {[%clk 0:01:40.2]} 18... Qxc3+ {[%clk 0:02:54.1]} 19. Kd1 {[%clk
0:01:41.7]} 19... O-O {[%clk 0:02:54.4]} 20. Be2 {[%clk 0:01:37.6]} 20... Nbd7
{[%clk 0:02:54.3]} 21. Nxe6 {[%clk 0:01:33.7]} 21... Rf6 {[%clk 0:02:53.9]} 22.
Bd4 {[%clk 0:01:27.7]} 22... Qc6 {[%clk 0:02:53.3]} 23. Nf4 {[%clk 0:00:49]}
23... g5 {[%clk 0:02:48.6]} 24. Qh5 {[%clk 0:00:50]} 24... gxf4 {[%clk
0:02:45.8]} 25. Bd3 {[%clk 0:00:48.3]} 25... Nf8 {[%clk 0:02:43.3]} 26. Kd2
{[%clk 0:00:47.9]} 26... Be6 {[%clk 0:02:38.1]} 27. Rhf1 {[%clk 0:00:47.8]}
27... Qe8 {[%clk 0:02:33.7]} 28. Qh4 {[%clk 0:00:48.4]} 28... Qf7 {[%clk
0:02:34.1]} 29. a4 {[%clk 0:00:46.1]} 29... bxa4 {[%clk 0:02:26.9]} 30. Rb6
{[%clk 0:00:46.7]} 30... Rg6 {[%clk 0:02:11.3]} 31. g3 {[%clk 0:00:42]} 31...
Nxd3 {[%clk 0:02:09.7]} 32. cxd3 {[%clk 0:00:41.6]} 32... f3 {[%clk 0:02:10.4]}
33. Rxd6 {[%clk 0:00:40]} 33... a3 {[%clk 0:02:09]} 34. Ke3 {[%clk 0:00:39]}
34... Bg4 {[%clk 0:02:08]} 35. Rxg6+ {[%clk 0:00:29.6]} 35... Qxg6 {[%clk
0:02:08.9]} 36. h3 {[%clk 0:00:31.2]} 36... Be6 {[%clk 0:02:08.2]} 37. Rxf3
{[%clk 0:00:28.6]} 37... Qg5+ {[%clk 0:02:08.4]} 38. Qxg5+ {[%clk 0:00:29.9]}
38... hxg5 {[%clk 0:02:08.6]} 39. Rf6 {[%clk 0:00:31.4]} 39... a2 {[%clk
0:02:09.3]} 40. h4 {[%clk 0:00:31.7]} 40... gxh4 {[%clk 0:02:08.8]} 41. gxh4
{[%clk 0:00:33.6]} 41... Rb8 {[%clk 0:02:09.9]} 42. Rh6 {[%clk 0:00:35.1]} 42...
Rb1 {[%clk 0:02:09.7]} 43. h5 {[%clk 0:00:29.3]} 43... a1=Q {[%clk 0:02:09.7]}
44. Bxa1 {[%clk 0:00:30.3]} 44... Rxa1 {[%clk 0:02:11.6]} 45. d4 {[%clk
0:00:31.8]} 45... Re1+ {[%clk 0:02:11]} 46. Kf2 {[%clk 0:00:27.1]} 46... Rxe4
{[%clk 0:02:10.9]} 47. d5 {[%clk 0:00:28.5]} 47... Kg7 {[%clk 0:02:11.5]} 0-1